[Event "GrandPrix_30.05"]
[Site "Chess.com"]
[Date "2020.05.30"]
[Round "2"]
[White "vagpat"]
[Black "A_N_D-R_E_I"]
[Result "1-0"]
[WhiteElo "2222"]
[BlackElo "2055"]
[TimeControl "600+2"]
[EndTime "8:58:08 PDT"]
[Termination "vagpat won by checkmate"]

1. e4 {[%clk 0:10:01.9]} 1... c5 {[%clk 0:02:03.1]} 2. Nf3 {[%clk 0:10:01.4]}
2... Nc6 {[%clk 0:02:01.2]} 3. d4 {[%clk 0:10:01.2]} 3... cxd4 {[%clk
0:02:03.1]} 4. Nxd4 {[%clk 0:10:01.7]} 4... Nf6 {[%clk 0:02:01.3]} 5. Nc3 {[%clk
0:09:56.6]} 5... e5 {[%clk 0:01:57.8]} 6. Ndb5 {[%clk 0:09:56.2]} 6... d6 {[%clk
0:01:58.8]} 7. Bg5 {[%clk 0:09:55.1]} 7... a6 {[%clk 0:01:57.2]} 8. Na3 {[%clk
0:09:54.7]} 8... b5 {[%clk 0:01:58]} 9. Bxf6 {[%clk 0:09:53.7]} 9... gxf6 {[%clk
0:01:59.9]} 10. Nd5 {[%clk 0:09:53.4]} 10... Bg7 {[%clk 0:01:59.5]} 11. Bd3
{[%clk 0:09:29]} 11... Be6 {[%clk 0:01:48.7]} 12. O-O {[%clk 0:09:01.3]} 12...
f5 {[%clk 0:01:43.3]} 13. c4 {[%clk 0:08:48.8]} 13... bxc4 {[%clk 0:01:34.5]}
14. Nxc4 {[%clk 0:08:30.9]} 14... O-O {[%clk 0:01:27]} 15. Rc1 {[%clk
0:06:30.5]} 15... Nd4 {[%clk 0:01:27.6]} 16. Nde3 {[%clk 0:05:47]} 16... f4
{[%clk 0:01:23]} 17. Nf5 {[%clk 0:05:47.6]} 17... Bxf5 {[%clk 0:01:05]} 18. exf5
{[%clk 0:05:49.5]} 18... d5 {[%clk 0:01:00.6]} 19. f6 {[%clk 0:05:01]} 19...
Qxf6 {[%clk 0:01:00.2]} 20. Na5 {[%clk 0:05:01.1]} 20... e4 {[%clk 0:00:59.3]}
21. Bb1 {[%clk 0:04:02.7]} 21... f3 {[%clk 0:01:00.2]} 22. Re1 {[%clk
0:03:52.5]} 22... Qg5 {[%clk 0:00:47.7]} 23. g3 {[%clk 0:03:53]} 23... Ne2+
{[%clk 0:00:21.6]} 24. Rxe2 {[%clk 0:03:54.4]} 24... fxe2 {[%clk 0:00:22.8]} 25.
Qe1 {[%clk 0:03:56.3]} 25... Rfc8 {[%clk 0:00:17.3]} 26. Nc6 {[%clk 0:03:51.3]}
26... Qf6 {[%clk 0:00:15.6]} 27. Nb4 {[%clk 0:03:46.2]} 27... Qxb2 {[%clk
0:00:15.5]} 28. Nc6 {[%clk 0:03:16.5]} 28... Qb6 {[%clk 0:00:13.1]} 29. Ne7+
{[%clk 0:03:16.3]} 29... Kh8 {[%clk 0:00:12.6]} 30. Nxc8 {[%clk 0:03:12.3]}
30... Qe6 {[%clk 0:00:13.2]} 31. Qxe2 {[%clk 0:02:50.8]} 31... Rxc8 {[%clk
0:00:14]} 32. Rd1 {[%clk 0:02:52.7]} 32... f5 {[%clk 0:00:10]} 33. Bc2 {[%clk
0:02:51.1]} 33... d4 {[%clk 0:00:11]} 34. Bb3 {[%clk 0:02:51.8]} 34... Qe5
{[%clk 0:00:12.2]} 35. Qxa6 {[%clk 0:02:51.1]} 35... Rd8 {[%clk 0:00:12]} 36.
Qb6 {[%clk 0:02:47]} 36... Rf8 {[%clk 0:00:11]} 37. Qe6 {[%clk 0:02:08.9]} 37...
Qb8 {[%clk 0:00:08.3]} 38. Rc1 {[%clk 0:01:53.6]} 38... Qa8 {[%clk 0:00:08.8]}
39. Bd5 {[%clk 0:01:51.1]} 39... Qa3 {[%clk 0:00:08.9]} 40. Rc7 {[%clk
0:01:50.4]} 40... e3 {[%clk 0:00:08.6]} 41. fxe3 {[%clk 0:01:28.3]} 41... Qxe3+
{[%clk 0:00:08.7]} 42. Qxe3 {[%clk 0:01:27.4]} 42... dxe3 {[%clk 0:00:10.6]} 43.
Kf1 {[%clk 0:01:27.1]} 43... Rd8 {[%clk 0:00:11.2]} 44. Bb3 {[%clk 0:01:22.8]}
44... Be5 {[%clk 0:00:12.2]} 45. Rc5 {[%clk 0:01:21.1]} 45... Re8 {[%clk
0:00:13.6]} 46. Rc4 {[%clk 0:01:09.7]} 46... Kg7 {[%clk 0:00:13.9]} 47. Ke2
{[%clk 0:01:09.7]} 47... Bd6 {[%clk 0:00:14.5]} 48. Bc2 {[%clk 0:01:09.6]} 48...
f4 {[%clk 0:00:15.4]} 49. gxf4 {[%clk 0:01:09.6]} 49... Kf6 {[%clk 0:00:16.3]}
50. Rc6 {[%clk 0:01:04.4]} 50... Ke7 {[%clk 0:00:15.9]} 51. Rc4 {[%clk
0:00:53.1]} 51... h6 {[%clk 0:00:15.3]} 52. Kxe3 {[%clk 0:00:51.6]} 52... Kf6+
{[%clk 0:00:16.8]} 53. Kf3 {[%clk 0:00:51.7]} 53... Re1 {[%clk 0:00:17.6]} 54.
Rc6 {[%clk 0:00:47.7]} 54... Ke7 {[%clk 0:00:18.2]} 55. Rc4 {[%clk 0:00:43.1]}
55... Rc1 {[%clk 0:00:17.4]} 56. h3 {[%clk 0:00:41.2]} 56... Rh1 {[%clk
0:00:17.8]} 57. Kg4 {[%clk 0:00:38.1]} 57... h5+ {[%clk 0:00:18.9]} 58. Kxh5
{[%clk 0:00:31.8]} 58... Rxh3+ {[%clk 0:00:19.9]} 59. Kg4 {[%clk 0:00:32.2]}
59... Rh2 {[%clk 0:00:20.6]} 60. f5 {[%clk 0:00:31.8]} 60... Kf6 {[%clk
0:00:21.3]} 61. a4 {[%clk 0:00:26.6]} 61... Rg2+ {[%clk 0:00:20]} 62. Kf3 {[%clk
0:00:26.1]} 62... Rg3+ {[%clk 0:00:20.9]} 63. Kf2 {[%clk 0:00:24.8]} 63... Ra3
{[%clk 0:00:21.6]} 64. Rc6 {[%clk 0:00:21.9]} 64... Ke5 {[%clk 0:00:21.5]} 65.
Ke2 {[%clk 0:00:22.6]} 65... Ra2 {[%clk 0:00:17.1]} 66. Kd3 {[%clk 0:00:21.6]}
66... Ra3+ {[%clk 0:00:16.3]} 67. Kc4 {[%clk 0:00:20.9]} 67... Ra2 {[%clk
0:00:14]} 68. Kb5 {[%clk 0:00:19.7]} 68... Rb2+ {[%clk 0:00:15.1]} 69. Ka6
{[%clk 0:00:19.9]} 69... Bf8 {[%clk 0:00:05.8]} 70. a5 {[%clk 0:00:16.8]} 70...
Kd5 {[%clk 0:00:06.8]} 71. Rc8 {[%clk 0:00:16.8]} 71... Be7 {[%clk 0:00:06.8]}
72. Ba4 {[%clk 0:00:15.3]} 72... Rb4 {[%clk 0:00:05.2]} 73. Bd7 {[%clk
0:00:14.1]} 73... Ke5 {[%clk 0:00:06.2]} 74. Be6 {[%clk 0:00:14.7]} 74... Rb2
{[%clk 0:00:05.5]} 75. Rc7 {[%clk 0:00:14.4]} 75... Bd6 {[%clk 0:00:06.7]} 76.
Rd7 {[%clk 0:00:14.7]} 76... Bb4 {[%clk 0:00:06.5]} 77. Rd5+ {[%clk 0:00:14.6]}
77... Kf6 {[%clk 0:00:06.8]} 78. Rb5 {[%clk 0:00:15.1]} 78... Rb1 {[%clk
0:00:06]} 79. Kb6 {[%clk 0:00:14.5]} 79... Rb2 {[%clk 0:00:04.9]} 80. a6 {[%clk
0:00:14.8]} 80... Bc3 {[%clk 0:00:05.6]} 81. Rxb2 {[%clk 0:00:14.7]} 81... Bxb2
{[%clk 0:00:04.6]} 82. a7 {[%clk 0:00:15.4]} 82... Bd4+ {[%clk 0:00:06]} 83. Kb7
{[%clk 0:00:16.1]} 83... Bxa7 {[%clk 0:00:06.9]} 84. Kxa7 {[%clk 0:00:16.9]}
84... Ke7 {[%clk 0:00:08.8]} 85. Kb6 {[%clk 0:00:18.2]} 85... Kf6 {[%clk
0:00:09.8]} 86. Kc5 {[%clk 0:00:19]} 86... Ke7 {[%clk 0:00:09.7]} 87. Kd5 {[%clk
0:00:19.9]} 87... Kf6 {[%clk 0:00:11.6]} 88. Kd6 {[%clk 0:00:20.9]} 88... Kg7
{[%clk 0:00:12.5]} 89. Ke7 {[%clk 0:00:21.7]} 89... Kh7 {[%clk 0:00:13.5]} 90.
f6 {[%clk 0:00:22.5]} 90... Kg6 {[%clk 0:00:14.5]} 91. f7 {[%clk 0:00:23.2]}
91... Kh7 {[%clk 0:00:15.9]} 92. f8=Q {[%clk 0:00:22.7]} 92... Kg6 {[%clk
0:00:16.5]} 93. Qf5+ {[%clk 0:00:21.7]} 93... Kg7 {[%clk 0:00:17.2]} 94. Qg4+
{[%clk 0:00:22]} 94... Kh6 {[%clk 0:00:17.5]} 95. Kf7 {[%clk 0:00:22.6]} 95...
Kh7 {[%clk 0:00:18.5]} 96. Qh5# {[%clk 0:00:23.3]} 1-0

[Event "GrandPrix_30.05"]
[Site "Chess.com"]
[Date "2020.05.30"]
[Round "3"]
[White "VSanduleac"]
[Black "francyIM"]
[Result "0-1"]
[WhiteElo "2238"]
[BlackElo "2595"]
[TimeControl "600+2"]
[EndTime "9:06:27 PDT"]
[Termination "francyIM won by resignation"]

1. e4 {[%clk 0:08:13.9]} 1... e5 {[%clk 0:09:58.6]} 2. Nf3 {[%clk 0:08:14.2]}
2... Nc6 {[%clk 0:09:58.4]} 3. Bc4 {[%clk 0:08:14.6]} 3... Bc5 {[%clk
0:09:57.1]} 4. c3 {[%clk 0:08:14.7]} 4... Nf6 {[%clk 0:09:57.9]} 5. d4 {[%clk
0:08:13.9]} 5... exd4 {[%clk 0:09:57.4]} 6. cxd4 {[%clk 0:08:14.8]} 6... Bb4+
{[%clk 0:09:58.3]} 7. Bd2 {[%clk 0:08:15.9]} 7... Nxe4 {[%clk 0:09:59.1]} 8.
Bxb4 {[%clk 0:08:12.9]} 8... Nxb4 {[%clk 0:10:01]} 9. Bxf7+ {[%clk 0:08:12.9]}
9... Kxf7 {[%clk 0:10:02.9]} 10. Qb3+ {[%clk 0:08:13.6]} 10... d5 {[%clk
0:10:04.1]} 11. Qxb4 {[%clk 0:08:14.4]} 11... Rf8 {[%clk 0:10:04.1]} 12. O-O
{[%clk 0:08:10.1]} 12... Kg8 {[%clk 0:10:05.1]} 13. Ne5 {[%clk 0:08:10.9]} 13...
Qg5 {[%clk 0:10:00.7]} 14. Qb3 {[%clk 0:07:47.1]} 14... c6 {[%clk 0:10:00.5]}
15. f3 {[%clk 0:07:39.2]} 15... Bh3 {[%clk 0:09:00.8]} 16. Qc2 {[%clk
0:07:36.5]} 16... Qe3+ {[%clk 0:09:00.8]} 17. Kh1 {[%clk 0:07:37.2]} 17... Qxd4
{[%clk 0:08:44.7]} 18. Nd7 {[%clk 0:07:29.8]} 18... Bxd7 {[%clk 0:08:45]} 0-1

[Event "GrandPrix_30.05"]
[Site "Chess.com"]
[Date "2020.05.30"]
[Round "3"]
[White "KacperKacprzak"]
[Black "Nuvas"]
[Result "1-0"]
[WhiteElo "2083"]
[BlackElo "2243"]
[TimeControl "600+2"]
[EndTime "9:08:30 PDT"]
[Termination "KacperKacprzak won by resignation"]

1. e4 {[%clk 0:10:01.2]} 1... c5 {[%clk 0:10:00.8]} 2. Nf3 {[%clk 0:09:59.6]}
2... d6 {[%clk 0:10:02.2]} 3. d4 {[%clk 0:09:59.1]} 3... cxd4 {[%clk 0:10:03.4]}
4. Nxd4 {[%clk 0:10:01]} 4... Nf6 {[%clk 0:10:04.6]} 5. Nc3 {[%clk 0:09:57.8]}
5... a6 {[%clk 0:10:05.9]} 6. h3 {[%clk 0:09:55.9]} 6... e6 {[%clk 0:09:53.7]}
7. g4 {[%clk 0:09:53.3]} 7... Nfd7 {[%clk 0:09:40]} 8. Bg2 {[%clk 0:09:51.5]}
8... Be7 {[%clk 0:09:26.2]} 9. Be3 {[%clk 0:09:45.1]} 9... Ne5 {[%clk
0:08:54.1]} 10. Qe2 {[%clk 0:09:44.9]} 10... g5 {[%clk 0:07:36]} 11. O-O-O
{[%clk 0:09:29.6]} 11... Ng6 {[%clk 0:07:36.7]} 12. Qd2 {[%clk 0:09:19.6]} 12...
Nd7 {[%clk 0:07:31.6]} 13. Nde2 {[%clk 0:09:07.6]} 13... Nde5 {[%clk 0:07:24.1]}
14. Bd4 {[%clk 0:08:52.6]} 14... Bd7 {[%clk 0:07:08.6]} 15. Kb1 {[%clk
0:08:51.3]} 15... Qc7 {[%clk 0:06:39.7]} 16. f4 {[%clk 0:08:40.3]} 16... gxf4
{[%clk 0:06:40.7]} 17. Nxf4 {[%clk 0:08:30.6]} 17... Bg5 {[%clk 0:06:18.1]} 18.
Nxe6 {[%clk 0:08:10.1]} 1-0

[Event "GrandPrix_30.05"]
[Site "Chess.com"]
[Date "2020.05.30"]
[Round "3"]
[White "Cocolino12"]
[Black "Sergey_Krivenko"]
[Result "1/2-1/2"]
[WhiteElo "2212"]
[BlackElo "2092"]
[TimeControl "600+2"]
[EndTime "9:08:58 PDT"]
[Termination "Game drawn by agreement"]

1. e4 {[%clk 0:10:01.9]} 1... e6 {[%clk 0:09:59.9]} 2. d4 {[%clk 0:10:01.3]}
2... d5 {[%clk 0:10:01.1]} 3. Nd2 {[%clk 0:10:01.2]} 3... Nf6 {[%clk 0:09:50.8]}
4. e5 {[%clk 0:10:00]} 4... Nfd7 {[%clk 0:09:51.6]} 5. Bd3 {[%clk 0:09:59.5]}
5... c5 {[%clk 0:09:52.8]} 6. c3 {[%clk 0:10:00.3]} 6... Nc6 {[%clk 0:09:54.1]}
7. Ne2 {[%clk 0:09:59.6]} 7... cxd4 {[%clk 0:09:55.3]} 8. cxd4 {[%clk
0:10:00.1]} 8... f6 {[%clk 0:09:56.5]} 9. exf6 {[%clk 0:09:59.9]} 9... Qxf6
{[%clk 0:09:58.4]} 10. Nf3 {[%clk 0:10:00.1]} 10... Bd6 {[%clk 0:09:50.3]} 11.
O-O {[%clk 0:09:58.6]} 11... O-O {[%clk 0:09:42.7]} 12. a3 {[%clk 0:09:55.1]}
12... h6 {[%clk 0:09:38.4]} 13. Bc2 {[%clk 0:09:33.4]} 13... Rf7 {[%clk
0:09:35.1]} 14. Qd3 {[%clk 0:09:32.8]} 14... Nf8 {[%clk 0:09:35.2]} 15. Ng3
{[%clk 0:09:30.8]} 15... Rc7 {[%clk 0:09:16]} 16. Be3 {[%clk 0:09:05.7]} 16...
Bd7 {[%clk 0:09:10.2]} 17. b4 {[%clk 0:08:40.9]} 17... Be8 {[%clk 0:07:57.8]}
18. Qd2 {[%clk 0:08:11.1]} 18... a6 {[%clk 0:07:28.1]} 19. Rac1 {[%clk
0:07:54.3]} 19... Rac8 {[%clk 0:07:13.6]} 20. Rfe1 {[%clk 0:07:24.1]} 1/2-1/2

[Event "GrandPrix_30.05"]
[Site "Chess.com"]
[Date "2020.05.30"]
[Round "3"]
[White "Lukianoo"]
[Black "tsaruk_maks"]
[Result "1-0"]
[WhiteElo "2582"]
[BlackElo "2384"]
[TimeControl "600+2"]
[EndTime "9:09:32 PDT"]
[Termination "Lukianoo won by resignation"]

1. e4 {[%clk 0:10:01.9]} 1... e6 {[%clk 0:10:00.7]} 2. b3 {[%clk 0:10:00.3]}
2... c5 {[%clk 0:09:57.8]} 3. Nf3 {[%clk 0:09:55.6]} 3... Nc6 {[%clk 0:09:58.8]}
4. Bb5 {[%clk 0:09:55.8]} 4... Nf6 {[%clk 0:08:42.9]} 5. e5 {[%clk 0:09:54.4]}
5... Nd5 {[%clk 0:08:44.4]} 6. O-O {[%clk 0:09:55.3]} 6... Be7 {[%clk
0:08:21.6]} 7. Nc3 {[%clk 0:09:54.2]} 7... Nxc3 {[%clk 0:07:54.7]} 8. dxc3
{[%clk 0:09:53.7]} 8... a6 {[%clk 0:07:55]} 9. Bxc6 {[%clk 0:09:53.7]} 9... dxc6
{[%clk 0:07:52.9]} 10. Qe2 {[%clk 0:09:53]} 10... O-O {[%clk 0:07:49.1]} 11. Rd1
{[%clk 0:09:46.9]} 11... Qa5 {[%clk 0:07:41.6]} 12. Bd2 {[%clk 0:09:43]} 12...
b5 {[%clk 0:06:53.9]} 13. c4 {[%clk 0:09:42.5]} 13... Qb6 {[%clk 0:06:45.9]} 14.
Bg5 {[%clk 0:09:40]} 14... Bxg5 {[%clk 0:06:14.8]} 15. Nxg5 {[%clk 0:09:41.9]}
15... h6 {[%clk 0:06:16.5]} 16. Ne4 {[%clk 0:09:42.5]} 16... a5 {[%clk
0:06:18.1]} 17. Rd3 {[%clk 0:09:39.3]} 17... bxc4 {[%clk 0:06:01.9]} 18. Rg3
{[%clk 0:09:39.5]} 18... Qc7 {[%clk 0:05:07.6]} 19. Nf6+ {[%clk 0:09:24]} 19...
Kh8 {[%clk 0:05:05.5]} 20. Qe4 {[%clk 0:09:24.1]} 1-0

[Event "GrandPrix_30.05"]
[Site "Chess.com"]
[Date "2020.05.30"]
[Round "3"]
[White "GM_LOADING"]
[Black "esskeettit"]
[Result "1-0"]
[WhiteElo "2327"]
[BlackElo "2123"]
[TimeControl "600+2"]
[EndTime "9:09:45 PDT"]
[Termination "GM_LOADING won by resignation"]

1. e4 {[%clk 0:10:01.9]} 1... c5 {[%clk 0:10:00.3]} 2. Nf3 {[%clk 0:10:03]} 2...
Nc6 {[%clk 0:10:00]} 3. d4 {[%clk 0:10:03.5]} 3... cxd4 {[%clk 0:10:01.9]} 4.
Nxd4 {[%clk 0:10:05.4]} 4... g6 {[%clk 0:10:03.1]} 5. c4 {[%clk 0:10:06.1]} 5...
Nf6 {[%clk 0:09:58.7]} 6. Nc3 {[%clk 0:10:07.1]} 6... d6 {[%clk 0:09:59.6]} 7.
Be2 {[%clk 0:10:07.5]} 7... Nxd4 {[%clk 0:09:58.7]} 8. Qxd4 {[%clk 0:10:09.4]}
8... Bg7 {[%clk 0:09:59.9]} 9. Be3 {[%clk 0:10:10.7]} 9... O-O {[%clk 0:10:01]}
10. Qd2 {[%clk 0:10:10.9]} 10... a5 {[%clk 0:09:47]} 11. O-O {[%clk 0:10:00.5]}
11... a4 {[%clk 0:09:48.1]} 12. Rad1 {[%clk 0:09:57.2]} 12... Qa5 {[%clk
0:09:45.7]} 13. Bd4 {[%clk 0:09:34.6]} 13... Be6 {[%clk 0:09:31.7]} 14. f4
{[%clk 0:09:18.8]} 14... Rfc8 {[%clk 0:09:21.4]} 15. b3 {[%clk 0:09:19]} 15...
axb3 {[%clk 0:09:14.8]} 16. axb3 {[%clk 0:09:20.9]} 16... Qb4 {[%clk 0:09:09.4]}
17. f5 {[%clk 0:09:09.2]} 17... Bd7 {[%clk 0:09:00.4]} 18. Bxf6 {[%clk
0:08:16.4]} 18... Bxf6 {[%clk 0:08:53.6]} 19. Nd5 {[%clk 0:08:10.8]} 19... Qxb3
{[%clk 0:07:43.5]} 20. fxg6 {[%clk 0:06:59.6]} 20... hxg6 {[%clk 0:07:37]} 21.
Rxf6 {[%clk 0:06:42.3]} 21... exf6 {[%clk 0:07:31.7]} 22. Qh6 {[%clk 0:06:24.8]}
22... Qb6+ {[%clk 0:06:55.1]} 23. Nxb6 {[%clk 0:06:21]} 1-0

[Event "GrandPrix_30.05"]
[Site "Chess.com"]
[Date "2020.05.30"]
[Round "3"]
[White "BogdanDeac"]
[Black "Tesla37"]
[Result "1/2-1/2"]
[WhiteElo "2520"]
[BlackElo "2811"]
[TimeControl "600+2"]
[EndTime "9:09:50 PDT"]
[Termination "Game drawn by agreement"]

1. Nf3 {[%clk 0:10:01.5]} 1... d5 {[%clk 0:09:57.8]} 2. d4 {[%clk 0:10:02]} 2...
Nf6 {[%clk 0:09:57]} 3. c4 {[%clk 0:10:03.5]} 3... e6 {[%clk 0:09:56.2]} 4. Nc3
{[%clk 0:10:04.1]} 4... Bb4 {[%clk 0:09:55.9]} 5. Qb3 {[%clk 0:10:00]} 5... c5
{[%clk 0:09:48.7]} 6. dxc5 {[%clk 0:10:00.6]} 6... Na6 {[%clk 0:09:46.6]} 7. a3
{[%clk 0:10:00.8]} 7... Bxc3+ {[%clk 0:09:45.6]} 8. Qxc3 {[%clk 0:10:02.7]} 8...
Nxc5 {[%clk 0:09:45.5]} 9. cxd5 {[%clk 0:09:58.9]} 9... Qxd5 {[%clk 0:09:41.9]}
10. Be3 {[%clk 0:09:59.2]} 10... Nce4 {[%clk 0:09:36.5]} 11. Qe5 {[%clk
0:09:57.4]} 11... Qxe5 {[%clk 0:09:13.4]} 12. Nxe5 {[%clk 0:09:57.1]} 12... Nd5
{[%clk 0:09:13.7]} 13. Bc1 {[%clk 0:09:54.4]} 13... Nc5 {[%clk 0:08:45.8]} 14.
b4 {[%clk 0:09:42.7]} 14... Nb3 {[%clk 0:08:37.3]} 15. Rb1 {[%clk 0:09:43.5]}
15... Nxc1 {[%clk 0:08:34.9]} 16. Rxc1 {[%clk 0:09:45.4]} 16... Nb6 {[%clk
0:07:27.8]} 17. e4 {[%clk 0:09:03.8]} 17... f6 {[%clk 0:07:15]} 18. Nc4 {[%clk
0:07:37.1]} 18... Nxc4 {[%clk 0:07:11.5]} 19. Rxc4 {[%clk 0:07:37.5]} 19... Bd7
{[%clk 0:07:03.3]} 20. Rc7 {[%clk 0:07:13.1]} 20... Rb8 {[%clk 0:06:56.8]} 21.
Bd3 {[%clk 0:06:19.7]} 21... Kd8 {[%clk 0:06:52]} 1/2-1/2

[Event "GrandPrix_30.05"]
[Site "Chess.com"]
[Date "2020.05.30"]
[Round "3"]
[White "StephenDedalus83"]
[Black "Shahinyan_ChessMood"]
[Result "0-1"]
[WhiteElo "2139"]
[BlackElo "2425"]
[TimeControl "600+2"]
[EndTime "9:09:50 PDT"]
[Termination "Shahinyan_ChessMood won by resignation"]

1. e4 {[%clk 0:10:01.9]} 1... e6 {[%clk 0:09:56.6]} 2. d4 {[%clk 0:10:00.4]}
2... d5 {[%clk 0:09:58.1]} 3. Nc3 {[%clk 0:10:01.2]} 3... Bb4 {[%clk 0:09:59.6]}
4. e5 {[%clk 0:10:02.1]} 4... c5 {[%clk 0:10:01.2]} 5. a3 {[%clk 0:10:03.4]}
5... Bxc3+ {[%clk 0:10:02.8]} 6. bxc3 {[%clk 0:10:04.8]} 6... Qc7 {[%clk
0:10:04.4]} 7. Qg4 {[%clk 0:10:04]} 7... f5 {[%clk 0:10:05.9]} 8. Qg3 {[%clk
0:10:04]} 8... Nc6 {[%clk 0:10:06.9]} 9. Nf3 {[%clk 0:09:59.2]} 9... Nge7 {[%clk
0:10:03.1]} 10. Qxg7 {[%clk 0:09:57.7]} 10... Rg8 {[%clk 0:10:03.6]} 11. Qxh7
{[%clk 0:09:58.5]} 11... cxd4 {[%clk 0:10:05.2]} 12. Kd1 {[%clk 0:09:55.4]}
12... Nxe5 {[%clk 0:08:55.9]} 13. cxd4 {[%clk 0:07:40]} 13... Nxf3 {[%clk
0:08:45.3]} 14. Qh5+ {[%clk 0:07:39.7]} 14... Ng6 {[%clk 0:08:25.9]} 15. Qxf3
{[%clk 0:07:40.4]} 15... Bd7 {[%clk 0:08:27.4]} 16. g3 {[%clk 0:07:40.2]} 16...
Ba4 {[%clk 0:08:11.8]} 17. Ra2 {[%clk 0:07:32.8]} 17... O-O-O {[%clk 0:07:33]}
18. Bd3 {[%clk 0:07:23.6]} 18... Kb8 {[%clk 0:07:27.2]} 19. h4 {[%clk
0:07:20.9]} 19... e5 {[%clk 0:07:13.7]} 20. dxe5 {[%clk 0:07:01.6]} 20... Nxe5
{[%clk 0:07:10.6]} 21. Qe2 {[%clk 0:07:01.7]} 21... Nxd3 {[%clk 0:06:58.9]} 22.
Qxd3 {[%clk 0:07:01.9]} 22... Ka8 {[%clk 0:06:58.1]} 23. Bf4 {[%clk 0:07:02.2]}
23... Qc6 {[%clk 0:06:52.8]} 24. Kc1 {[%clk 0:07:00.3]} 24... Rc8 {[%clk
0:06:43.6]} 25. Kb1 {[%clk 0:07:00.2]} 25... Rgd8 {[%clk 0:06:37.4]} 26. h5
{[%clk 0:06:58.2]} 26... d4 {[%clk 0:06:38.7]} 27. h6 {[%clk 0:06:54.6]} 27...
Qxh1+ {[%clk 0:06:36.8]} 0-1

[Event "GrandPrix_30.05"]
[Site "Chess.com"]
[Date "2020.05.30"]
[Round "3"]
[White "Mizner"]
[Black "AlexPapasimakopoulos"]
[Result "0-1"]
[WhiteElo "2089"]
[BlackElo "2312"]
[TimeControl "600+2"]
[EndTime "9:10:01 PDT"]
[Termination "AlexPapasimakopoulos won by resignation"]

1. d4 {[%clk 0:09:55.1]} 1... Nf6 {[%clk 0:10:00.9]} 2. c4 {[%clk 0:09:55.4]}
2... e6 {[%clk 0:10:02.5]} 3. Nc3 {[%clk 0:09:55.5]} 3... Bb4 {[%clk 0:10:03.6]}
4. Qc2 {[%clk 0:09:56]} 4... c5 {[%clk 0:10:03.7]} 5. dxc5 {[%clk 0:09:56.7]}
5... Bxc5 {[%clk 0:10:05.6]} 6. Nf3 {[%clk 0:09:49.4]} 6... Qb6 {[%clk
0:10:07.3]} 7. e3 {[%clk 0:09:49.9]} 7... Be7 {[%clk 0:10:08.9]} 8. Be2 {[%clk
0:09:42.9]} 8... a6 {[%clk 0:10:10.3]} 9. O-O {[%clk 0:09:43.7]} 9... d6 {[%clk
0:10:11.8]} 10. a3 {[%clk 0:09:38]} 10... O-O {[%clk 0:10:13.2]} 11. b4 {[%clk
0:09:39]} 11... Qc7 {[%clk 0:10:14.4]} 12. Bb2 {[%clk 0:09:38.3]} 12... Nbd7
{[%clk 0:10:16.1]} 13. Nd4 {[%clk 0:09:31.1]} 13... b6 {[%clk 0:10:17.1]} 14.
Bf3 {[%clk 0:09:31]} 14... Bb7 {[%clk 0:10:18.8]} 15. Bxb7 {[%clk 0:09:25.6]}
15... Qxb7 {[%clk 0:10:20.7]} 16. Rac1 {[%clk 0:09:17.2]} 16... Rac8 {[%clk
0:10:22.2]} 17. Qe2 {[%clk 0:09:00]} 17... Ne5 {[%clk 0:10:23.4]} 18. Nb1 {[%clk
0:08:32.2]} 18... Rc7 {[%clk 0:10:24.2]} 19. h3 {[%clk 0:08:29.2]} 19... Rfc8
{[%clk 0:10:24.8]} 20. Nd2 {[%clk 0:08:27.1]} 20... Ne4 {[%clk 0:10:26.2]} 21.
Nxe4 {[%clk 0:08:05]} 21... Qxe4 {[%clk 0:10:28.1]} 22. c5 {[%clk 0:07:35.4]}
22... bxc5 {[%clk 0:10:26.9]} 23. bxc5 {[%clk 0:07:29.6]} 23... dxc5 {[%clk
0:10:28]} 24. Qxa6 {[%clk 0:07:24.3]} 24... cxd4 {[%clk 0:10:26.5]} 25. Qxc8+
{[%clk 0:07:12.7]} 25... Rxc8 {[%clk 0:10:28.4]} 26. Rxc8+ {[%clk 0:07:13.5]}
26... Bf8 {[%clk 0:10:30.1]} 27. Bxd4 {[%clk 0:07:13.9]} 27... Ng6 {[%clk
0:09:42.5]} 28. Rfc1 {[%clk 0:05:22]} 28... h5 {[%clk 0:09:40.8]} 29. Rb8 {[%clk
0:05:12.2]} 29... Kh7 {[%clk 0:09:34.6]} 0-1

[Event "GrandPrix_30.05"]
[Site "Chess.com"]
[Date "2020.05.30"]
[Round "3"]
[White "RaphaeI"]
[Black "Thor736"]
[Result "0-1"]
[WhiteElo "2209"]
[BlackElo "2108"]
[TimeControl "600+2"]
[EndTime "9:11:04 PDT"]
[Termination "Thor736 won by resignation"]

1. d4 {[%clk 0:10:01.9]} 1... Nf6 {[%clk 0:10:00.2]} 2. Nf3 {[%clk 0:10:02.8]}
2... b6 {[%clk 0:10:01.2]} 3. c4 {[%clk 0:10:02.4]} 3... Bb7 {[%clk 0:10:02.1]}
4. g3 {[%clk 0:10:02.8]} 4... g6 {[%clk 0:10:02.9]} 5. Bg2 {[%clk 0:10:03.7]}
5... Bg7 {[%clk 0:10:03.7]} 6. O-O {[%clk 0:10:05.4]} 6... O-O {[%clk
0:10:04.6]} 7. Bf4 {[%clk 0:10:07]} 7... c5 {[%clk 0:09:59.4]} 8. d5 {[%clk
0:10:02.8]} 8... b5 {[%clk 0:10:00.7]} 9. Nc3 {[%clk 0:08:22.4]} 9... bxc4
{[%clk 0:09:40.7]} 10. e4 {[%clk 0:08:08.9]} 10... d6 {[%clk 0:09:37.9]} 11. Nd2
{[%clk 0:07:55.2]} 11... Nbd7 {[%clk 0:09:12.3]} 12. Re1 {[%clk 0:07:44.9]}
12... Nb6 {[%clk 0:08:58.1]} 13. Bf1 {[%clk 0:07:43.1]} 13... Nfd7 {[%clk
0:07:48.2]} 14. Nxc4 {[%clk 0:07:36.3]} 14... Nxc4 {[%clk 0:07:47.4]} 15. Bxc4
{[%clk 0:07:38.2]} 15... Rb8 {[%clk 0:07:13.4]} 16. Rc1 {[%clk 0:07:31.9]} 16...
Ne5 {[%clk 0:06:57.7]} 17. Bf1 {[%clk 0:07:30.2]} 17... Qa5 {[%clk 0:06:53.9]}
18. Bd2 {[%clk 0:07:28.9]} 18... Ba6 {[%clk 0:06:43.6]} 19. b3 {[%clk
0:06:58.9]} 19... Bxf1 {[%clk 0:06:35.1]} 20. Rxf1 {[%clk 0:06:59.7]} 20... c4
{[%clk 0:06:05.4]} 21. Na4 {[%clk 0:05:50.6]} 21... Qxd2 {[%clk 0:05:57.2]} 0-1